bitfinex/quotes_ETHUSD_20250508
["timestamp","ask_amount","ask_price","bid_price","bid_amount"]
[1746728169049,4.86556348,2055.3,2055.0,1.05693646]
[1746728169256,0.8082,2055.4,2055.0,1.05693646]
[1746728169571,4.86587333,2055.2,2054.9,0.7879]
[1746728170081,4.86562441,2055.3,2054.9,5.65428134]
[1746728170448,4.86573599,2055.2,2054.9,0.7879]
[1746728170648,4.86562441,2055.3,2054.9,5.65431228]
[1746728171057,9.73131767,2055.3,2054.9,5.65431228]
[1746728171265,9.73131767,2055.3,2054.9,6.70642059]
[1746728171565,4.86572582,2055.2,2054.9,1.84000831]
[1746728172285,4.86566019,2055.3,2054.9,6.70633617]
[1746728172471,4.86570761,2055.2,2054.9,1.84000831]
[1746728172677,4.8656118,2055.3,2054.9,6.70641251]
[1746728172873,4.8656118,2055.3,2055.0,0.83465178]
[1746728173251,4.8656118,2055.3,2055.0,0.88330716]
[1746728174479,4.8656118,2055.3,2055.0,0.83465178]
[1746728174480,4.86571236,2055.2,2055.0,0.83465178]
[1746728175194,9.73132809,2055.3,2054.9,6.70640504]
[1746728175560,4.86573111,2055.2,2054.9,1.84000831]
[1746728176190,4.86559461,2055.3,2054.9,1.84000831]
[1746728176358,4.86559461,2055.3,2055.0,0.04865543]
[1746728176766,5.67358141,2055.4,2055.0,4.91481444]
[1746728177069,5.67358141,2055.4,2055.1,1.16210383]
[1746728177070,4.8653864,2055.4,2055.1,1.16210383]
[1746728177475,5.65385842,2055.6,2055.2,4.86569257]
[1746728177674,4.86507847,2055.5,2055.1,6.02793168]
[1746728177877,5.65385842,2055.6,2055.1,6.02793168]
[1746728177878,4.86491418,2055.6,2055.2,5.71766445]
[1746728178254,9.7298768,2055.6,2055.2,5.71766445]
[1746728178456,4.86462203,2055.7,2055.2,7.2117904]
[1746728178666,9.7299663,2055.6,2055.2,7.2117904]
[1746728178885,4.8650687,2055.5,2055.2,2.29745908]
[1746728179402,4.86491264,2055.6,2055.2,7.16299699]
[1746728179552,4.86491264,2055.6,2055.2,7.21164609]
[1746728179751,4.86491264,2055.6,2055.3,1.32394951]
[1746728180306,0.7889,2055.8,2055.3,6.18938531]
[1746728180586,3.0,2056.1,2055.5,4.86485346]
[1746728180587,4.86405847,2055.9,2055.5,4.86485346]
[1746728181553,2.84311527,2055.9,2055.4,0.8035]
[1746728181753,4.86468014,2055.7,2055.4,0.8035]
[1746728181956,5.64376523,2055.7,2055.3,12.29941658]
[1746728182161,4.86466523,2055.7,2055.3,12.29941658]
[1746728182362,4.86444519,2055.8,2055.4,4.86507207]
[1746728183388,4.86431767,2055.8,2055.4,4.86507207]
[1746728183606,4.86419205,2055.9,2055.5,6.87871503]
[1746728183902,4.86419205,2055.9,2055.5,6.87864399]
[1746728184202,4.86394511,2056.0,2055.6,4.86470727]
[1746728184386,4.86405414,2055.9,2055.5,6.87865699]
[1746728184586,4.8639667,2056.0,2055.5,6.87860094]
[1746728184787,5.64121136,2056.1,2055.7,4.864499]
[1746728184986,4.86342998,2056.2,2055.8,0.83253974]
[1746728185186,4.86342998,2056.2,2055.8,5.69673561]
[1746728185875,4.86361047,2056.1,2055.8,0.7839]
[1746728186199,4.86349381,2056.2,2055.8,5.64817613]
[1746728186371,3.9715,2056.3,2055.8,2.22326837]
[1746728186576,4.86372283,2056.1,2055.8,0.7839]
[1746728188489,11.67775517,2056.3,2055.8,0.7839]
[1746728188688,11.67775517,2056.3,2055.6,3.88086009]
[1746728188689,4.86391203,2056.0,2055.6,9.54123651]
[1746728188906,4.86391203,2056.0,2055.7,2.49399562]
[1746728190287,4.86405774,2055.9,2055.7,2.49399562]
[1746728190787,4.86395491,2056.0,2055.7,2.49399562]
[1746728191023,4.86414838,2055.9,2055.7,2.49399562]
[1746728191330,4.86414838,2055.9,2055.6,4.67556009]
[1746728193132,4.86414838,2055.9,2055.6,9.54031404]
[1746728193424,4.86443935,2055.8,2055.6,0.68786009]
[1746728193609,9.72895156,2055.8,2055.5,4.42090216]
[1746728193809,4.86555044,2055.3,2055.0,0.7628]
[1746728194128,4.86525463,2055.4,2055.0,8.81983095]
[1746728194301,0.7557,2055.7,2055.1,0.04865372]
[1746728194501,4.86477148,2055.6,2055.3,0.8115]
[1746728194710,4.86477148,2055.6,2055.3,1.86578848]
[1746728194891,5.62034769,2055.7,2055.3,1.86578848]
[1746728195292,5.62034769,2055.7,2055.3,6.73123319]
[1746728195593,4.86481153,2055.6,2055.3,1.86578848]
[1746728195902,5.62031083,2055.7,2055.3,11.59662568]
[1746728196104,4.86461083,2055.7,2055.4,1.45966257]
[1746728196342,4.86476236,2055.6,2055.4,1.45966257]
[1746728197125,4.86464606,2055.7,2055.4,1.45966257]
[1746728197630,4.86346828,2056.2,2055.8,4.86420875]
[1746728197929,4.86346828,2056.2,2055.9,1.08594999]
[1746728198434,4.86346828,2056.2,2055.9,2.21601156]
[1746728198600,4.86346828,2056.2,2055.9,1.13006157]
[1746728199092,4.86275373,2056.5,2056.1,4.86348725]
[1746728199423,4.86275373,2056.5,2056.2,0.831]
[1746728199592,4.86275373,2056.5,2056.2,2.49508684]
[1746728199929,5.65979442,2056.6,2056.2,7.35826173]
[1746728199930,4.86251915,2056.6,2056.2,7.35826173]
[1746728200292,5.62352602,2056.8,2056.3,0.04862715]
[1746728200293,4.86229324,2056.7,2056.3,0.04862715]
[1746728200736,4.8624224,2056.6,2056.2,7.35825668]
[1746728201226,4.8624224,2056.6,2056.3,0.04862645]
[1746728201427,4.86269739,2056.5,2056.3,1.22703321]
[1746728201618,4.86272797,2056.5,2056.3,3.191]
[1746728204223,5.62344439,2056.8,2056.3,3.191]
[1746728204426,4.86297864,2056.4,2056.2,4.021]
[1746728204594,4.8627882,2056.5,2056.2,4.021]
[1746728205022,4.86301903,2056.4,2056.2,4.021]
[1746728205224,4.86301903,2056.4,2056.3,0.7212]
[1746728205534,4.8627882,2056.5,2056.3,0.7212]
[1746728207036,4.86247604,2056.6,2056.3,0.7212]
[1746728207617,4.86264412,2056.5,2056.3,0.7212]
[1746728208143,4.86286714,2056.4,2056.3,0.7212]
[1746728208837,9.72595039,2056.4,2056.0,5.62665953]
[1746728209154,4.86342088,2056.2,2055.9,10.38142637]
[1746728209311,4.86360036,2056.1,2055.9,1.08142637]
[1746728209512,4.86349236,2056.2,2055.9,1.08142637]
[1746728210100,4.86317379,2056.3,2055.6,0.7629]
[1746728210101,4.8631964,2056.3,2055.6,0.7629]
[1746728210331,0.756,2056.4,2055.7,0.04864024]
[1746728210332,4.86383718,2056.0,2055.7,0.04864024]
[1746728210534,4.86408416,2055.9,2055.7,0.04864024]
[1746728210723,4.86401874,2056.0,2055.6,3.9519]
[1746728211043,4.86413067,2055.9,2055.6,0.7629]
[1746728211355,4.86388977,2056.0,2055.7,0.56277619]
[1746728212105,4.86406062,2055.9,2055.7,0.56277619]
[1746728212305,4.86388977,2056.0,2055.7,0.56277619]
[1746728212750,4.86330307,2056.3,2055.8,5.66439113]
[1746728212925,4.86286714,2056.4,2055.8,0.84894027]
[1746728213241,0.7801,2056.5,2055.8,0.84894027]
[1746728213242,4.8634513,2056.2,2055.9,0.62761066]
[1746728213443,4.86323925,2056.3,2055.9,0.62761066]
[1746728213652,4.86334392,2056.2,2055.9,0.62761066]
[1746728213818,4.86334392,2056.2,2055.9,5.49154985]
[1746728213819,4.86334071,2056.2,2055.9,5.49154985]
[1746728214023,4.86334071,2056.2,2055.9,0.62761066]
[1746728214257,4.86334071,2056.2,2056.0,0.62920562]
[1746728215154,4.86326043,2056.3,2056.0,0.62920562]
[1746728215313,4.86334891,2056.2,2056.0,0.62920562]
[1746728217210,4.86325322,2056.3,2056.0,0.62920562]
[1746728217534,9.72657632,2056.3,2056.0,0.62920562]
[1746728217712,4.86325322,2056.3,2056.1,0.61208504]
[1746728218139,9.72657103,2056.3,2056.1,0.61208504]
[1746728218367,9.72658553,2056.3,2056.1,0.61208504]
[1746728218715,4.86325322,2056.3,2056.1,0.61208504]
[1746728219042,4.86357667,2056.1,2056.0,0.62920562]
[1746728219211,4.86350108,2056.2,2056.0,0.62920562]
[1746728220149,4.8632192,2056.3,2056.0,0.62920562]
[1746728220843,4.86334743,2056.2,2056.0,0.62920562]
[1746728222366,4.86295558,2056.4,2056.1,0.04863381]
[1746728222667,4.86295558,2056.4,2056.1,1.85891504]
[1746728223436,4.86295558,2056.4,2056.1,6.72249077]
[1746728223678,5.68942711,2056.6,2056.2,4.86328789]
[1746728223879,4.86205563,2056.8,2056.4,4.86280268]
[1746728224035,5.69463632,2057.0,2056.5,1.62370103]
[1746728224229,4.86207969,2056.8,2056.5,0.77]
[1746728224475,4.86217098,2056.7,2056.5,0.77]
[1746728224880,4.8618686,2056.9,2056.5,0.77]
[1746728225087,4.86200703,2056.8,2056.5,0.77]
[1746728226150,4.86162163,2057.0,2056.5,5.63253524]
[1746728226353,4.86162163,2057.0,2056.6,5.4255478]
[1746728226675,4.86162163,2057.0,2056.6,10.28777566]
[1746728226875,4.86176326,2056.9,2056.6,0.56325352]
[1746728227485,4.86162163,2057.0,2056.6,5.42564155]
[1746728228000,0.8051,2057.2,2056.6,0.56325352]
[1746728228186,4.86135593,2057.1,2056.7,6.11277505]
[1746728228692,4.86135593,2057.1,2056.7,10.97476902]
[1746728228987,4.86146694,2057.0,2056.7,1.25062535]
[1746728229198,4.8613548,2057.1,2056.7,6.11275619]
[1746728229782,4.8613548,2057.1,2056.7,1.25062535]
[1746728229984,4.86148942,2057.0,2056.8,0.96761444]
[1746728230189,4.86168506,2056.9,2056.8,0.96761444]
[1746728230392,4.86132748,2057.1,2056.8,0.04861693]
[1746728230566,4.86132748,2057.1,2056.7,9.29961312]
[1746728230901,4.86107731,2057.2,2056.7,4.43762535]
[1746728231067,4.86135625,2057.1,2056.7,9.29976027]
[1746728231264,4.86156613,2057.0,2056.8,1.60500138]
[1746728232906,4.86134729,2057.1,2056.8,1.60500138]
[1746728233470,4.86145315,2057.0,2056.8,1.60500138]
[1746728233672,4.86168506,2056.9,2056.8,1.60500138]
[1746728234717,4.86160191,2057.0,2056.8,1.60500138]
[1746728234872,4.86160191,2057.0,2056.9,0.60426267]
[1746728237322,0.8037,2057.4,2056.9,0.60426267]
[1746728237524,4.97181284,2057.3,2056.9,5.46586763]
[1746728237749,4.86097848,2057.2,2056.9,0.60426267]
[1746728237955,0.11011553,2057.1,2056.9,0.60426267]
[1746728238155,0.11011553,2057.1,2057.0,1.032776]
[1746728238358,4.97132791,2057.1,2057.0,1.032776]
[1746728238538,4.86144871,2057.0,2056.9,0.60426267]
[1746728238738,4.97112598,2057.0,2056.9,0.60426267]
[1746728239133,0.10967727,2057.0,2056.9,0.60426267]
[1746728239458,4.97112598,2057.0,2056.9,0.60426267]
[1746728239811,4.97112598,2057.0,2056.7,6.56232535]
[1746728239812,4.86192143,2056.8,2056.7,6.56232535]
[1746728240011,4.86180894,2056.9,2056.7,6.56232535]
[1746728240210,4.86192143,2056.8,2056.7,6.56232535]
[1746728240624,4.86183661,2056.9,2056.7,6.56232535]
[1746728241015,4.86192143,2056.8,2056.7,6.56232535]
[1746728241215,4.86192143,2056.8,2056.7,0.45232535]
[1746728241421,4.86229063,2056.7,2056.3,8.82988162]
[1746728241666,4.86183429,2056.9,2056.5,5.64340942]
[1746728242955,4.86184067,2056.9,2056.5,5.64340942]
[1746728243759,4.86184067,2056.9,2056.5,5.64333255]
[1746728243964,0.7732,2057.3,2056.6,1.05061357]
[1746728244262,4.86109079,2057.2,2056.8,4.86181415]
[1746728244447,9.83303555,2057.2,2056.8,4.86181415]
[1746728244648,4.8613107,2057.1,2056.7,8.8096597]
[1746728245059,0.10978379,2057.0,2056.7,8.8096597]
[1746728245355,4.97127747,2057.0,2056.8,0.88096597]
[1746728246360,4.86168506,2056.9,2056.7,0.7626]
[1746728246569,0.10928794,2056.9,2056.7,0.62315685]
[1746728247226,4.86157523,2057.0,2056.7,0.62315685]
[1746728247565,4.86136053,2057.1,2056.7,5.5339177]
[1746728247721,4.86104299,2057.2,2056.8,4.86188682]
[1746728247926,9.7222197,2057.2,2056.8,4.91050197]
[1746728248161,4.86121383,2057.1,2056.8,4.86188682]
[1746728248458,4.86085562,2057.3,2056.8,7.86177725]
[1746728248768,4.8612995,2057.1,2056.7,4.86208245]
[1746728248927,4.86112599,2057.2,2056.8,4.86192107]
[1746728249543,4.86112599,2057.2,2056.9,0.0486116]
[1746728249757,4.86112599,2057.2,2056.9,0.8324]
[1746728250250,4.86063084,2057.4,2056.9,5.74264601]
[1746728250571,4.86098088,2057.2,2056.9,0.88101161]
[1746728250741,4.86098088,2057.2,2056.9,0.8324]
[1746728250942,4.86109228,2057.2,2056.9,0.8324]
[1746728253745,4.86122882,2057.1,2056.9,0.8324]
[1746728254147,4.86122882,2057.1,2056.7,5.66118443]
[1746728254362,4.86122882,2057.1,2056.7,8.24553642]
[1746728254559,4.86251512,2056.6,2056.5,0.7992]
[1746728254734,4.86251512,2056.6,2056.2,6.11]
[1746728254735,4.86230489,2056.7,2056.3,8.84500025]
[1746728254935,5.69445914,2056.8,2056.3,8.84486013]
[1746728255137,4.8621741,2056.7,2056.3,8.84486013]
[1746728255461,4.8621741,2056.7,2056.4,1.37081904]
[1746728255833,4.8621741,2056.7,2056.3,3.9819]
[1746728256040,4.86242601,2056.6,2056.3,3.9819]
[1746728256854,4.86286714,2056.4,2056.1,18.3026]
[1746728257053,4.86276776,2056.5,2056.1,24.6716]
[1746728257277,4.86255212,2056.6,2056.2,4.91194981]
[1746728257489,4.86255212,2056.6,2056.2,8.21049157]
[1746728257653,4.86264258,2056.5,2056.2,3.29854176]
[1746728257976,4.86264258,2056.5,2056.1,29.53503554]
[1746728258682,4.86320895,2056.3,2056.1,21.4886]
[1746728258880,4.86320895,2056.3,2056.1,21.4856]
[1746728259049,4.86320895,2056.3,2056.1,18.3026]
[1746728259245,4.86303771,2056.4,2056.1,21.4856]
[1746728259450,4.86303771,2056.4,2056.1,18.3026]
[1746728259650,4.86278781,2056.5,2056.1,21.4856]
[1746728259873,0.7949,2056.7,2056.1,18.3026]
[1746728260077,4.86322256,2056.3,2056.1,3.183]
[1746728260690,4.86325115,2056.3,2056.1,3.183]
[1746728260990,4.86291705,2056.4,2056.0,8.09533427]
[1746728261362,4.86313472,2056.3,2056.0,3.23163223]
[1746728262215,4.86280694,2056.5,2056.1,4.86356958]
[1746728262481,4.86280694,2056.5,2056.2,0.7831]
[1746728262787,4.86286947,2056.4,2056.2,0.7831]
[1746728263354,4.86284414,2056.5,2056.2,0.7831]
[1746728263559,4.86310363,2056.3,2056.2,0.7831]
[1746728263765,5.68267273,2056.4,2056.0,7.1746]
[1746728264191,4.8633568,2056.2,2056.0,7.1746]
[1746728264495,4.8640498,2055.9,2055.8,3.183]
[1746728264796,4.8640244,2056.0,2055.6,8.83753567]
[1746728265103,4.8640244,2056.0,2055.6,12.02053567]
[1746728265599,4.86369423,2056.1,2055.7,4.86450651]
[1746728265761,4.86347,2056.2,2055.8,6.11496098]
[1746728265966,4.8635921,2056.1,2055.9,0.7847]
[1746728266265,4.86347,2056.2,2055.9,0.7847]
[1746728267251,4.86320775,2056.3,2055.9,0.7847]
[1746728267366,4.86346671,2056.2,2055.9,0.7847]
[1746728267695,4.86358497,2056.1,2055.9,0.7847]
[1746728267895,4.86346671,2056.2,2055.9,0.7847]
[1746728268316,4.86335194,2056.2,2055.9,5.69735348]
[1746728268596,4.86335194,2056.2,2055.9,0.7847]
[1746728268798,4.86329103,2056.3,2055.9,2.22485401]
[1746728269163,4.86335736,2056.2,2055.9,5.69734526]
[1746728269464,4.86304979,2056.4,2056.0,4.86379492]
[1746728269859,4.86335358,2056.2,2055.9,5.64873986]
[1746728270097,4.86321774,2056.3,2055.9,5.64866904]
[1746728270295,4.86321774,2056.3,2055.9,5.64859157]
[1746728270597,4.86294469,2056.4,2056.0,5.47720969]
[1746728270795,0.8131,2056.6,2056.2,0.7542]
[1746728271019,4.86295987,2056.4,2056.2,0.7542]
[1746728271158,4.86275861,2056.5,2056.2,0.7542]
[1746728271363,4.86275861,2056.5,2056.2,5.61750787]
[1746728271558,7.8623505,2056.7,2056.2,2.54413386]
[1746728271559,4.86241797,2056.6,2056.2,2.54413386]
[1746728271786,4.8620382,2056.8,2056.5,0.8204]
[1746728271972,4.86216736,2056.7,2056.5,0.8204]
[1746728272681,4.86239424,2056.6,2056.5,0.8204]
[1746728272880,4.86239424,2056.6,2056.3,0.7948]
[1746728273080,4.86239424,2056.6,2056.3,3.55278378]
[1746728273600,4.86224807,2056.7,2056.3,8.41580579]
[1746728273971,4.86206148,2056.8,2056.3,8.41569447]
[1746728274175,4.86206148,2056.8,2056.4,4.86284287]
[1746728274504,4.862168,2056.7,2056.3,8.41573318]
[1746728274813,4.86247567,2056.6,2056.4,1.50202584]
[1746728275027,4.86247567,2056.6,2056.3,3.55278378]
[1746728277594,4.86247567,2056.6,2056.3,8.41587313]
[1746728278537,4.86247567,2056.6,2056.3,3.55278378]
[1746728278727,4.86247567,2056.6,2056.3,0.7948]
[1746728279033,4.86247567,2056.6,2056.4,3.182]
[1746728279393,4.86252326,2056.6,2056.3,0.7948]
[1746728279594,4.86278942,2056.5,2056.3,3.181]
[1746728280340,4.86286714,2056.4,2056.3,3.181]
[1746728280630,4.86286714,2056.4,2056.0,6.364]
[1746728280631,4.86322739,2056.3,2056.0,6.364]
[1746728281326,4.86338358,2056.2,2056.0,3.183]
[1746728281526,4.86357667,2056.1,2056.0,3.183]
[1746728281719,4.86348752,2056.2,2056.0,3.183]
[1746728282746,4.86357667,2056.1,2056.0,3.183]
[1746728283545,4.86348012,2056.2,2056.0,3.183]
[1746728284444,4.86271685,2056.5,2056.1,5.66498614]
[1746728284759,4.86251152,2056.6,2056.2,4.86329554]
[1746728284967,0.7721,2056.7,2056.2,4.86329554]
[1746728284968,4.86229309,2056.7,2056.2,4.91192324]
[1746728285261,4.86229309,2056.7,2056.4,0.8015]
[1746728285647,4.86201304,2056.8,2056.4,5.6642323]
[1746728286017,4.86250781,2056.6,2056.4,0.8015]
[1746728287123,4.8621956,2056.7,2056.4,0.8015]
[1746728288959,5.6851552,2057.0,2056.4,0.8015]
[1746728289156,4.86263068,2056.5,2056.4,0.8015]
[1746728289345,4.86243751,2056.6,2056.3,3.18]
[1746728289551,4.86269425,2056.5,2056.3,3.18]
[1746728289927,4.86251223,2056.6,2056.3,3.18]
[1746728290455,4.86300695,2056.4,2056.1,6.36]
[1746728290649,4.86300695,2056.4,2056.1,11.22355385]
[1746728291026,4.86255427,2056.6,2056.2,4.86326167]
[1746728291235,4.862707,2056.5,2056.1,4.86340736]
[1746728291462,4.862707,2056.5,2056.1,8.04340736]
[1746728291680,4.86251379,2056.6,2056.1,8.04339862]
[1746728291829,0.7904,2056.7,2056.1,9.11650866]
[1746728292029,4.86271668,2056.5,2056.1,9.06787823]
[1746728292370,4.86271668,2056.5,2056.1,9.11650866]
[1746728292755,0.7904,2056.7,2056.1,4.25311004]
[1746728292973,4.86295755,2056.4,2056.1,3.18]
[1746728293127,4.86282552,2056.5,2056.1,8.0435675]
[1746728293630,4.86282552,2056.5,2056.1,8.09219794]
[1746728293830,4.86282552,2056.5,2056.1,8.09205934]
[1746728294332,4.86252159,2056.6,2056.3,0.7503]
[1746728294533,4.86230129,2056.7,2056.3,6.78151076]
[1746728294754,4.86204439,2056.8,2056.4,4.91141938]
[1746728295136,4.86204439,2056.8,2056.4,4.91131913]
[1746728296366,0.8207,2056.9,2056.4,0.04862732]
[1746728296672,4.86222216,2056.7,2056.3,6.78143971]
[1746728296831,4.86222216,2056.7,2056.4,0.67814397]
[1746728297035,4.86214637,2056.8,2056.5,4.86263017]
[1746728297236,9.72371679,2056.9,2056.6,0.8327]
[1746728297445,4.86182949,2056.9,2056.6,0.8327]
[1746728298682,5.63378162,2057.1,2056.6,0.8327]
[1746728298979,4.86215782,2056.7,2056.4,0.7838]
[1746728300582,4.86286714,2056.4,2056.3,3.18]
[1746728300882,5.65516714,2056.4,2056.3,3.18]
[1746728301580,4.86264414,2056.5,2056.1,4.86344034]
[1746728301781,4.86233611,2056.7,2056.2,7.75192416]
[1746728301997,4.86219476,2056.7,2056.3,6.41354502]
[1746728302208,4.86218133,2056.7,2056.3,6.41357914]
[1746728303704,4.86218133,2056.7,2056.3,1.55059242]
[1746728303705,4.86241538,2056.6,2056.3,1.55059242]
[1746728303889,4.86218133,2056.7,2056.3,6.41365473]
[1746728304204,4.86184071,2056.9,2056.4,4.86264195]
[1746728304499,4.86227715,2056.7,2056.3,1.55059242]
[1746728304705,4.86227715,2056.7,2056.3,6.41359331]
[1746728305813,4.86317602,2056.3,2056.1,0.8169]
[1746728305968,4.86348988,2056.2,2056.0,3.18]
[1746728306169,9.72658361,2056.3,2056.0,3.18]
[1746728306387,4.8633492,2056.2,2056.0,3.18]
[1746728306589,4.86322355,2056.3,2056.0,3.18]
[1746728307159,9.72654322,2056.3,2056.0,3.18]
[1746728307386,4.86334838,2056.2,2056.0,3.18]
[1746728307586,4.86322355,2056.3,2056.0,3.18]
[1746728307790,4.86281329,2056.5,2056.0,10.06672441]
[1746728308021,4.86305266,2056.4,2056.0,10.06672441]
[1746728308624,4.86277372,2056.5,2056.1,4.86357202]
[1746728308808,4.86255037,2056.6,2056.2,0.82452891]
[1746728309097,4.86228927,2056.7,2056.3,8.04100761]
[1746728309491,4.86240777,2056.6,2056.3,3.178]
[1746728309685,4.86228428,2056.7,2056.3,3.178]
[1746728309929,4.86215782,2056.7,2056.3,3.178]
[1746728310133,5.91441817,2056.9,2056.3,3.178]
[1746728310134,4.05269134,2056.9,2056.3,3.178]
[1746728310301,4.86251561,2056.6,2056.3,3.178]
[1746728310824,9.72513359,2056.6,2056.3,3.178]
[1746728311115,4.86286714,2056.4,2056.3,3.178]
[1746728314549,4.86286714,2056.4,2056.0,10.8377781]
[1746728314731,4.86286714,2056.4,2056.0,14.0147781]
[1746728315047,4.86316743,2056.3,2056.1,4.00556341]
[1746728315215,4.86286714,2056.4,2056.1,4.00556341]
[1746728315414,4.86311184,2056.3,2056.1,4.00556341]
[1746728316834,4.86300355,2056.4,2056.1,4.00556341]
[1746728318132,4.86319998,2056.3,2056.1,3.177]
[1746728318450,4.86316251,2056.3,2056.1,3.177]
[1746728319657,9.72647571,2056.3,2056.1,3.177]
[1746728319856,4.86334014,2056.2,2056.0,0.8198]
[1746728320062,0.777,2056.4,2055.9,3.177]
[1746728320363,4.86369426,2056.1,2055.9,3.177]
[1746728321056,4.86335137,2056.2,2055.9,3.177]
[1746728321057,4.86345343,2056.2,2055.9,3.177]
[1746728321356,4.86274632,2056.5,2056.1,5.63599578]
[1746728321558,4.86279459,2056.5,2056.1,5.63599578]
[1746728321936,4.86279459,2056.5,2056.2,4.86333351]
[1746728322141,4.86279459,2056.5,2056.1,0.82112904]
[1746728322445,4.86298956,2056.4,2056.1,0.7725]
[1746728322647,4.86298956,2056.4,2056.1,2.42421647]
[1746728322853,4.86298956,2056.4,2056.1,5.63607344]
[1746728323062,4.86298956,2056.4,2056.1,0.7725]
[1746728323733,4.86298956,2056.4,2056.1,5.6360652]
[1746728324063,4.86298956,2056.4,2056.1,0.7725]
[1746728324269,4.86298956,2056.4,2056.2,3.177]
[1746728324456,9.72561274,2056.5,2056.2,3.177]
[1746728324631,4.86277536,2056.5,2056.2,3.177]
[1746728324939,4.86288008,2056.4,2056.2,3.177]
[1746728326135,3.7749,2056.8,2056.2,3.177]
[1746728326370,4.86265543,2056.5,2056.2,8.04033421]
[1746728326534,4.86254116,2056.6,2056.2,8.04033421]
[1746728326858,4.86267307,2056.5,2056.2,3.177]
[1746728327062,4.86287939,2056.4,2056.2,3.177]
[1746728327269,4.86267307,2056.5,2056.2,3.177]
[1746728327471,3.7749,2056.8,2056.2,9.20556019]
[1746728327703,4.86258119,2056.6,2056.2,9.20556019]
[1746728328056,4.86227917,2056.7,2056.3,5.66405257]
[1746728328983,9.72411801,2056.8,2056.4,8.03876565]
[1746728329185,4.86218027,2056.7,2056.4,8.03876565]
[1746728329482,4.86218027,2056.7,2056.4,5.25967618]
[1746728329684,4.86182498,2056.9,2056.4,10.12240483]
[1746728329875,4.86170912,2056.9,2056.5,5.73680951]
[1746728331351,0.7684,2057.2,2056.6,4.86238872]
[1746728331556,4.86164463,2057.0,2056.5,5.68810694]
[1746728331876,4.86172487,2056.9,2056.6,1.37878366]
[1746728332359,4.86172487,2056.9,2056.6,6.24117328]
[1746728332554,4.86165401,2057.0,2056.6,6.24117328]
[1746728332754,4.86165401,2057.0,2056.6,1.37878366]
[1746728332952,4.86108033,2057.2,2056.8,5.68751842]
[1746728333157,4.86089982,2057.3,2056.9,4.91018218]
[1746728333353,4.86103213,2057.2,2056.8,5.68751842]
[1746728333557,4.86103213,2057.2,2056.8,5.68745703]
[1746728333878,4.86088831,2057.3,2056.9,4.86167799]
[1746728334182,4.85979491,2057.7,2057.2,4.86086338]
[1746728334349,4.86019077,2057.6,2057.2,4.86086338]
[1746728334864,4.86027905,2057.5,2057.2,3.177]
[1746728336544,4.86058747,2057.4,2057.2,3.177]
[1746728336771,4.86063995,2057.4,2057.2,3.177]
[1746728337067,4.86037011,2057.5,2057.3,0.791]
[1746728337271,4.86010779,2057.6,2057.3,0.791]
[1746728337482,4.86032586,2057.5,2057.3,0.791]
[1746728338489,4.86050354,2057.4,2057.3,0.791]
[1746728338948,4.85958644,2057.8,2057.3,0.791]
[1746728339154,4.86043418,2057.5,2057.3,0.791]
[1746728339657,4.86050354,2057.4,2057.3,0.791]
[1746728340178,4.86043418,2057.5,2057.3,0.791]
[1746728340577,4.86050354,2057.4,2057.2,3.177]
[1746728340758,4.8610414,2057.2,2057.0,7.1729]
[1746728341291,0.8097,2057.4,2056.7,4.66589619]
[1746728341292,3.64975353,2057.4,2056.7,4.66589619]
[1746728341458,4.86154973,2057.0,2056.7,4.66589619]
[1746728342089,4.86135958,2057.1,2056.7,9.52805125]
[1746728342559,4.86086451,2057.3,2056.9,4.86151939]
[1746728342754,4.86086451,2057.3,2057.0,2.02554329]
[1746728342956,9.72183072,2057.3,2057.0,2.02554329]
[1746728343264,4.86099356,2057.2,2056.8,3.8325]
[1746728343598,4.86148218,2057.0,2056.8,0.8325]
[1746728343958,0.7729,2057.3,2056.8,0.8325]
[1746728344158,4.8604971,2057.5,2057.0,4.86127846]
[1746728344383,4.86059051,2057.4,2057.2,0.8166]
[1746728345896,4.86041446,2057.5,2057.2,0.8166]
[1746728346273,4.8607398,2057.3,2057.2,0.8166]
[1746728346772,4.86065139,2057.4,2057.2,0.8166]
[1746728347891,4.86026731,2057.5,2057.0,0.7769]
[1746728348196,4.86121238,2057.1,2057.0,3.176]
[1746728349493,4.86191285,2056.9,2056.6,6.11]
[1746728349899,4.86186416,2056.9,2056.6,6.11]
[1746728350098,4.86199938,2056.8,2056.6,6.11]
[1746728350805,4.86181619,2056.9,2056.6,6.11]
[1746728350991,4.86181619,2056.9,2056.6,9.718447]
[1746728351193,5.64883171,2057.4,2057.0,5.66824328]
[1746728351395,10.05,2058.1,2057.1,3.22060852]
[1746728351396,4.85996616,2057.7,2057.1,3.22060852]
[1746728351599,4.86043585,2057.5,2057.2,0.8212]
[1746728351763,4.86020031,2057.6,2057.2,1.53772]
[1746728351967,4.86056367,2057.4,2057.2,1.53772]
[1746728352266,7.85967418,2057.8,2057.2,1.53772]
[1746728352469,4.86046666,2057.5,2057.2,0.8212]
[1746728352669,4.86051474,2057.4,2057.2,0.8212]
[1746728353107,4.86041585,2057.5,2057.2,0.8212]
[1746728353478,4.8607398,2057.3,2057.2,0.8212]
[1746728353673,4.8607398,2057.3,2057.2,7.1652]
[1746728353879,4.86209057,2056.8,2056.3,3.9228]
[1746728354174,4.86212905,2056.8,2056.3,11.6257933]
[1746728354479,4.86212905,2056.8,2056.4,4.86284803]
[1746728354680,9.72332157,2057.0,2056.4,4.86284803]
[1746728354881,4.86180779,2056.9,2056.3,8.78575216]
[1746728355089,4.86161852,2057.0,2056.4,6.5449334]
[1746728355276,4.86161852,2057.0,2056.6,0.7701]
[1746728355574,4.86177321,2056.9,2056.6,0.7701]
[1746728355778,4.8617724,2056.9,2056.6,3.9411]
[1746728355971,7.55629505,2057.1,2056.4,5.63801942]
[1746728356224,4.86197866,2056.8,2056.5,3.171]
[1746728356571,4.86197866,2056.8,2056.6,3.171]
[1746728356795,4.86179782,2056.9,2056.6,3.171]
[1746728357003,1.2314302,2057.0,2056.6,3.171]
[1746728357171,4.86185986,2056.9,2056.6,3.171]
[1746728357513,4.86194978,2056.8,2056.6,3.171]
[1746728357721,4.86186848,2056.9,2056.6,3.171]
[1746728357894,5.78251,2056.9,2056.4,8.81001942]
[1746728358091,5.78251,2056.9,2056.5,3.171]
[1746728358298,4.86248944,2056.6,2056.5,3.171]
[1746728358525,4.86248944,2056.6,2056.4,3.171]
[1746728359102,4.86263171,2056.5,2056.2,0.777]
[1746728359323,5.8043034,2056.7,2056.3,3.171]
[1746728359507,5.65925297,2056.8,2056.4,0.7604]
[1746728359711,4.86218,2056.7,2056.4,0.7604]
[1746728361639,4.86218,2056.7,2056.4,3.9314]